[Event "Early-Titled-Tuesday-Blitz-April-16-2024"]
[Site "Chess.com"]
[Date "2024.04.16"]
[Round "4"]
[White "GeorgiosSouleidis"]
[Black "ccccvhhhj"]
[Result "1-0"]
[WhiteElo "2657"]
[BlackElo "2442"]
[TimeControl "180+1"]
[EndTime "8:41:54 PDT"]
[Termination "GeorgiosSouleidis won on time"]

1. e4 {[%clk 0:03:00.9]} 1... e6 {[%clk 0:03:00.1]} 2. d4 {[%clk 0:03:00.8]}
2... d5 {[%clk 0:03:01]} 3. Nc3 {[%clk 0:03:01.3]} 3... Bb4 {[%clk 0:03:00.9]}
4. Ne2 {[%clk 0:03:00.9]} 4... Nc6 {[%clk 0:03:01]} 5. exd5 {[%clk 0:02:47.6]}
5... exd5 {[%clk 0:03:00.5]} 6. a3 {[%clk 0:02:48.1]} 6... Ba5 {[%clk
0:02:42.8]} 7. b4 {[%clk 0:02:22.1]} 7... Bb6 {[%clk 0:02:42.7]} 8. Na4 {[%clk
0:02:21.9]} 8... Bg4 {[%clk 0:02:18.2]} 9. c3 {[%clk 0:02:18.2]} 9... Nf6 {[%clk
0:02:16.5]} 10. f3 {[%clk 0:02:07.3]} 10... Bf5 {[%clk 0:02:09.9]} 11. Ng3
{[%clk 0:02:05.4]} 11... Bg6 {[%clk 0:02:10.5]} 12. h4 {[%clk 0:01:52.5]} 12...
Qd6 {[%clk 0:02:01.4]} 13. Kf2 {[%clk 0:01:48.6]} 13... h6 {[%clk 0:01:49.8]}
14. Bd3 {[%clk 0:01:38.3]} 14... O-O {[%clk 0:01:16.8]} 15. h5 {[%clk
0:01:37.3]} 15... Bxd3 {[%clk 0:01:10.5]} 16. Qxd3 {[%clk 0:01:37.2]} 16... Rfe8
{[%clk 0:01:03.1]} 17. Bd2 {[%clk 0:01:35.4]} 17... Re6 {[%clk 0:00:53.5]} 18.
Nc5 {[%clk 0:01:29.7]} 18... Bxc5 {[%clk 0:00:53.3]} 19. bxc5 {[%clk 0:01:30.3]}
19... Qd7 {[%clk 0:00:28.7]} 20. a4 {[%clk 0:01:27.9]} 20... Rae8 {[%clk
0:00:28.1]} 21. a5 {[%clk 0:01:24.4]} 21... b6 {[%clk 0:00:27.4]} 22. axb6
{[%clk 0:01:24.2]} 22... axb6 {[%clk 0:00:26.8]} 23. cxb6 {[%clk 0:01:24.7]}
23... cxb6 {[%clk 0:00:27.4]} 24. Rab1 {[%clk 0:01:21.6]} 24... Na5 {[%clk
0:00:27.2]} 25. Rhe1 {[%clk 0:01:03.8]} 25... Nc4 {[%clk 0:00:27.7]} 26. Rxe6
{[%clk 0:01:02.7]} 26... Rxe6 {[%clk 0:00:28.6]} 27. Bf4 {[%clk 0:00:57]} 27...
Qa4 {[%clk 0:00:24.7]} 28. Kg1 {[%clk 0:00:45.3]} 28... Qa2 {[%clk 0:00:24.6]}
29. Kh2 {[%clk 0:00:44]} 29... Qf2 {[%clk 0:00:10.9]} 30. Qf1 {[%clk 0:00:42.1]}
30... Qc2 {[%clk 0:00:09.9]} 31. Qc1 {[%clk 0:00:39.9]} 31... Qa2 {[%clk
0:00:10.3]} 32. Ra1 {[%clk 0:00:39.2]} 32... Qf2 {[%clk 0:00:10.9]} 33. Ra8+
{[%clk 0:00:36.8]} 33... Re8 {[%clk 0:00:06.6]} 34. Rxe8+ {[%clk 0:00:35.3]}
34... Nxe8 {[%clk 0:00:07.5]} 35. Qb1 {[%clk 0:00:27.3]} 35... Nf6 {[%clk
0:00:06.6]} 36. Qf5 {[%clk 0:00:26.6]} 36... Ne3 {[%clk 0:00:05.2]} 37. Qc8+
{[%clk 0:00:21.3]} 37... Kh7 {[%clk 0:00:05.2]} 38. Bxe3 {[%clk 0:00:21.4]}
38... Qxe3 {[%clk 0:00:06]} 39. Qf5+ {[%clk 0:00:20.8]} 39... Kg8 {[%clk
0:00:05.7]} 40. Qc8+ {[%clk 0:00:19]} 40... Kh7 {[%clk 0:00:06.4]} 41. Qc7
{[%clk 0:00:19.3]} 41... Qe6 {[%clk 0:00:03.5]} 42. Qf4 {[%clk 0:00:14.9]} 42...
Kg8 {[%clk 0:00:03.8]} 43. Qb8+ {[%clk 0:00:10.8]} 43... Kh7 {[%clk 0:00:03.9]}
44. Qe5 {[%clk 0:00:05.8]} 44... Qc6 {[%clk 0:00:04.3]} 45. Qf5+ {[%clk
0:00:05.7]} 45... Kg8 {[%clk 0:00:04.2]} 46. Qd3 {[%clk 0:00:05.8]} 46... b5
{[%clk 0:00:04.5]} 47. Nf5 {[%clk 0:00:04.2]} 47... Qc7+ {[%clk 0:00:05]} 48. g3
{[%clk 0:00:02.5]} 48... Qd7 {[%clk 0:00:05.2]} 49. g4 {[%clk 0:00:02.1]} 49...
Ne8 {[%clk 0:00:05]} 50. Kg2 {[%clk 0:00:02.5]} 50... Nd6 {[%clk 0:00:05.6]} 51.
Nxd6 {[%clk 0:00:01.1]} 51... Qxd6 {[%clk 0:00:06.5]} 52. Qxb5 {[%clk
0:00:01.7]} 52... Qe6 {[%clk 0:00:06.7]} 53. Qf1 {[%clk 0:00:02.6]} 53... Qe3
{[%clk 0:00:06.4]} 54. Qa1 {[%clk 0:00:02.3]} 54... Qd2+ {[%clk 0:00:06.4]} 55.
Kg3 {[%clk 0:00:03.2]} 55... Qe3 {[%clk 0:00:05.5]} 56. Qa8+ {[%clk 0:00:03.5]}
56... Kh7 {[%clk 0:00:05.9]} 57. Qxd5 {[%clk 0:00:04.4]} 57... Qxc3 {[%clk
0:00:05.8]} 58. Qf5+ {[%clk 0:00:05.1]} 58... Kg8 {[%clk 0:00:06.5]} 59. Qe4
{[%clk 0:00:05.3]} 59... Qc1 {[%clk 0:00:06.5]} 60. d5 {[%clk 0:00:05.8]} 60...
Qg1+ {[%clk 0:00:06.3]} 61. Kf4 {[%clk 0:00:06.4]} 61... Qh2+ {[%clk 0:00:06.8]}
62. Ke3 {[%clk 0:00:06.6]} 62... Qg1+ {[%clk 0:00:06]} 63. Kd3 {[%clk
0:00:07.2]} 63... Qd1+ {[%clk 0:00:06.1]} 64. Kc4 {[%clk 0:00:07.5]} 64... Qa4+
{[%clk 0:00:06.3]} 65. Kc5 {[%clk 0:00:07.4]} 65... Qa5+ {[%clk 0:00:07]} 66.
Kc6 {[%clk 0:00:07.9]} 66... Qa6+ {[%clk 0:00:07.2]} 67. Kc5 {[%clk 0:00:08.3]}
67... Qa5+ {[%clk 0:00:07.6]} 68. Kd4 {[%clk 0:00:08.9]} 68... Qb4+ {[%clk
0:00:07.9]} 69. Ke5 {[%clk 0:00:08.9]} 69... Qe7+ {[%clk 0:00:08.5]} 70. Kf4
{[%clk 0:00:08.8]} 70... Qd6+ {[%clk 0:00:08.3]} 71. Qe5 {[%clk 0:00:08.7]}
71... Qb4+ {[%clk 0:00:08.9]} 72. Kg3 {[%clk 0:00:08.3]} 72... Qb1 {[%clk
0:00:04.1]} 73. Qe8+ {[%clk 0:00:08.1]} 73... Kh7 {[%clk 0:00:04.8]} 74. Qe4+
{[%clk 0:00:08.8]} 74... Qxe4 {[%clk 0:00:04]} 75. fxe4 {[%clk 0:00:09.7]} 75...
Kg8 {[%clk 0:00:04.5]} 76. e5 {[%clk 0:00:09.7]} 76... Kf8 {[%clk 0:00:05.1]}
77. Kf4 {[%clk 0:00:10.3]} 77... Ke7 {[%clk 0:00:05.7]} 78. Kf5 {[%clk 0:00:10]}
78... Kd7 {[%clk 0:00:05.5]} 79. g5 {[%clk 0:00:10.4]} 79... hxg5 {[%clk
0:00:04.3]} 80. Kxg5 {[%clk 0:00:11.3]} 80... Ke7 {[%clk 0:00:05]} 81. Kf5
{[%clk 0:00:10]} 81... Kd7 {[%clk 0:00:05.1]} 82. e6+ {[%clk 0:00:06.6]} 82...
fxe6+ {[%clk 0:00:06]} 83. dxe6+ {[%clk 0:00:07.1]} 83... Ke7 {[%clk 0:00:06.7]}
84. Ke5 {[%clk 0:00:07.6]} 84... Kf8 {[%clk 0:00:04.7]} 85. Kd6 {[%clk
0:00:06.8]} 85... Ke8 {[%clk 0:00:05.3]} 86. e7 {[%clk 0:00:06.4]} 86... g6
{[%clk 0:00:05.6]} 87. h6 {[%clk 0:00:05.8]} 87... Kf7 {[%clk 0:00:06.1]} 88.
Kd7 {[%clk 0:00:05.8]} 88... g5 {[%clk 0:00:05.9]} 89. e8=Q+ {[%clk 0:00:06.7]}
1-0

[Event "Early-Titled-Tuesday-Blitz-April-16-2024"]
[Site "Chess.com"]
[Date "2024.04.16"]
[Round "5"]
[White "Oleksandr_Bortnyk"]
[Black "Matibar"]
[Result "1-0"]
[WhiteElo "3046"]
[BlackElo "2831"]
[TimeControl "180+1"]
[EndTime "8:50:11 PDT"]
[Termination "Oleksandr_Bortnyk won by resignation"]

1. e4 {[%clk 0:02:57.1]} 1... e5 {[%clk 0:02:59.3]} 2. Bc4 {[%clk 0:02:54.5]}
2... Nf6 {[%clk 0:02:59]} 3. d3 {[%clk 0:02:54.9]} 3... Nc6 {[%clk 0:02:57]} 4.
Nc3 {[%clk 0:02:55]} 4... Bb4 {[%clk 0:02:56.4]} 5. Bd2 {[%clk 0:02:55.4]} 5...
O-O {[%clk 0:02:52.3]} 6. Nge2 {[%clk 0:02:55.9]} 6... d6 {[%clk 0:02:51.1]} 7.
Ng3 {[%clk 0:02:56]} 7... Be6 {[%clk 0:02:49.3]} 8. O-O {[%clk 0:02:54.4]} 8...
d5 {[%clk 0:02:43.4]} 9. exd5 {[%clk 0:02:53.4]} 9... Nxd5 {[%clk 0:02:43.6]}
10. Nxd5 {[%clk 0:02:52.1]} 10... Bxd5 {[%clk 0:02:43.6]} 11. Bxd5 {[%clk
0:02:51]} 11... Qxd5 {[%clk 0:02:44.1]} 12. Bxb4 {[%clk 0:02:51.6]} 12... Nxb4
{[%clk 0:02:41.3]} 13. Qg4 {[%clk 0:02:50.8]} 13... Nc6 {[%clk 0:02:40.9]} 14.
Nh5 {[%clk 0:02:49.8]} 1-0

[Event "Early-Titled-Tuesday-Blitz-April-16-2024"]
[Site "Chess.com"]
[Date "2024.04.16"]
[Round "5"]
[White "Kotlyar_K"]
[Black "PedroGil25"]
[Result "1-0"]
[WhiteElo "2690"]
[BlackElo "2501"]
[TimeControl "180+1"]
[EndTime "8:50:46 PDT"]
[Termination "Kotlyar_K won by resignation"]

1. d4 {[%clk 0:02:58.7]} 1... Nf6 {[%clk 0:02:55.9]} 2. c4 {[%clk 0:02:57.9]}
2... e6 {[%clk 0:02:55.8]} 3. Nc3 {[%clk 0:02:57.1]} 3... Bb4 {[%clk 0:02:55.3]}
4. e3 {[%clk 0:02:57.6]} 4... Bxc3+ {[%clk 0:02:55.2]} 5. bxc3 {[%clk
0:02:56.8]} 5... d6 {[%clk 0:02:52.5]} 6. Bd3 {[%clk 0:02:27]} 6... O-O {[%clk
0:02:52.2]} 7. e4 {[%clk 0:02:27.6]} 7... e5 {[%clk 0:02:51.7]} 8. Ne2 {[%clk
0:02:27.7]} 8... c5 {[%clk 0:02:51.7]} 9. d5 {[%clk 0:02:22.9]} 9... Nh5 {[%clk
0:02:49.8]} 10. O-O {[%clk 0:02:21]} 10... Nd7 {[%clk 0:02:49.7]} 11. g4 {[%clk
0:02:14.5]} 11... Nhf6 {[%clk 0:02:42]} 12. Ng3 {[%clk 0:02:13]} 12... Re8
{[%clk 0:02:41.1]} 13. g5 {[%clk 0:02:09.8]} 1-0

[Event "Early-Titled-Tuesday-Blitz-April-16-2024"]
[Site "Chess.com"]
[Date "2024.04.16"]
[Round "5"]
[White "mertfelin"]
[Black "SaiAgni_98"]
[Result "0-1"]
[WhiteElo "2226"]
[BlackElo "2479"]
[TimeControl "180+1"]
[EndTime "8:51:50 PDT"]
[Termination "SaiAgni_98 won by resignation"]

1. e4 {[%clk 0:03:00.3]} 1... c6 {[%clk 0:02:56.4]} 2. d4 {[%clk 0:02:57.2]}
2... d5 {[%clk 0:02:56.3]} 3. e5 {[%clk 0:02:57.3]} 3... Bf5 {[%clk 0:02:56]} 4.
h4 {[%clk 0:02:57.2]} 4... h5 {[%clk 0:02:55.7]} 5. Bd3 {[%clk 0:02:57.5]} 5...
Bxd3 {[%clk 0:02:54.3]} 6. Qxd3 {[%clk 0:02:58]} 6... Qa5+ {[%clk 0:02:54.7]} 7.
Nd2 {[%clk 0:02:58]} 7... e6 {[%clk 0:02:51.5]} 8. Nf3 {[%clk 0:02:51]} 8... Be7
{[%clk 0:02:48]} 9. O-O {[%clk 0:02:45]} 9... Nh6 {[%clk 0:02:47.5]} 10. c4
{[%clk 0:02:45.4]} 10... Qa6 {[%clk 0:02:44.3]} 11. b3 {[%clk 0:02:45.3]} 11...
Nf5 {[%clk 0:02:42.7]} 12. a4 {[%clk 0:02:45.8]} 12... Nxh4 {[%clk 0:02:38.9]}
13. Nxh4 {[%clk 0:02:46.7]} 13... Bxh4 {[%clk 0:02:39.5]} 14. Ba3 {[%clk
0:02:41.7]} 14... Nd7 {[%clk 0:02:29.6]} 15. Bd6 {[%clk 0:02:42.2]} 15... Be7
{[%clk 0:02:24.1]} 16. Bxe7 {[%clk 0:02:42.3]} 16... Kxe7 {[%clk 0:02:24.5]} 17.
Qg3 {[%clk 0:02:39.2]} 17... Qb6 {[%clk 0:02:00.6]} 18. Qc3 {[%clk 0:02:24]}
18... a5 {[%clk 0:01:56.6]} 19. f4 {[%clk 0:02:20]} 19... g6 {[%clk 0:01:54.4]}
20. Qg3 {[%clk 0:02:17.3]} 20... Qxd4+ {[%clk 0:01:53.3]} 21. Kh2 {[%clk
0:02:16.5]} 21... Qxd2 {[%clk 0:01:52.1]} 0-1

[Event "Early-Titled-Tuesday-Blitz-April-16-2024"]
[Site "Chess.com"]
[Date "2024.04.16"]
[Round "5"]
[White "Anton_Demchenko"]
[Black "FREDERICKtheMATE"]
[Result "1-0"]
[WhiteElo "3010"]
[BlackElo "2690"]
[TimeControl "180+1"]
[EndTime "8:51:52 PDT"]
[Termination "Anton_Demchenko won by resignation"]

1. e4 {[%clk 0:03:00.3]} 1... e5 {[%clk 0:02:59.9]} 2. Nf3 {[%clk 0:02:58.7]}
2... Nc6 {[%clk 0:03:00.3]} 3. Bc4 {[%clk 0:02:56.3]} 3... Nf6 {[%clk
0:02:59.1]} 4. d3 {[%clk 0:02:56.7]} 4... Bc5 {[%clk 0:02:58.2]} 5. Bg5 {[%clk
0:02:56.1]} 5... h6 {[%clk 0:02:57.4]} 6. Bh4 {[%clk 0:02:56.7]} 6... d6 {[%clk
0:02:56.3]} 7. c3 {[%clk 0:02:56.9]} 7... g5 {[%clk 0:02:53.3]} 8. Bg3 {[%clk
0:02:57.4]} 8... Bb6 {[%clk 0:02:50.5]} 9. Nbd2 {[%clk 0:02:57.9]} 9... Be6
{[%clk 0:02:37.8]} 10. a4 {[%clk 0:02:57.5]} 10... a5 {[%clk 0:02:36.7]} 11.
Bxe6 {[%clk 0:02:55.3]} 11... fxe6 {[%clk 0:02:37.1]} 12. Qb3 {[%clk 0:02:56.1]}
12... Qe7 {[%clk 0:02:30.5]} 13. Nc4 {[%clk 0:02:51.4]} 13... Nd7 {[%clk
0:02:30.3]} 14. h4 {[%clk 0:02:51.1]} 14... g4 {[%clk 0:02:29.4]} 15. Nfd2
{[%clk 0:02:48.6]} 15... Nc5 {[%clk 0:02:24.1]} 16. Qc2 {[%clk 0:02:49]} 16...
Ba7 {[%clk 0:02:24]} 17. h5 {[%clk 0:02:47]} 17... Qf6 {[%clk 0:02:08.8]} 18.
O-O-O {[%clk 0:02:45.3]} 18... Nd7 {[%clk 0:01:55.4]} 19. Na3 {[%clk 0:02:40.3]}
19... Qf7 {[%clk 0:01:44.6]} 20. Nb5 {[%clk 0:02:38]} 20... O-O-O {[%clk
0:01:40.7]} 21. Nc4 {[%clk 0:02:33.7]} 21... Bb6 {[%clk 0:01:39]} 22. Ncxd6+
{[%clk 0:02:24.5]} 22... cxd6 {[%clk 0:01:36.8]} 23. Nxd6+ {[%clk 0:02:25.4]}
1-0

[Event "Early-Titled-Tuesday-Blitz-April-16-2024"]
[Site "Chess.com"]
[Date "2024.04.16"]
[Round "5"]
[White "Kazmin_Semyon"]
[Black "Dzidzik2203"]
[Result "1-0"]
[WhiteElo "2589"]
[BlackElo "2419"]
[TimeControl "180+1"]
[EndTime "8:52:02 PDT"]
[Termination "Kazmin_Semyon won by resignation"]

1. e4 {[%clk 0:02:56.8]} 1... c5 {[%clk 0:02:57.3]} 2. Nf3 {[%clk 0:02:56.3]}
2... d6 {[%clk 0:02:44.8]} 3. d4 {[%clk 0:02:55]} 3... cxd4 {[%clk 0:02:45.7]}
4. Nxd4 {[%clk 0:02:55.4]} 4... Nf6 {[%clk 0:02:45.6]} 5. Nc3 {[%clk 0:02:56.1]}
5... a6 {[%clk 0:02:45.5]} 6. Bg5 {[%clk 0:02:56.5]} 6... e6 {[%clk 0:02:45.7]}
7. f4 {[%clk 0:02:57.1]} 7... Be7 {[%clk 0:02:46.3]} 8. Qf3 {[%clk 0:02:57.6]}
8... Qc7 {[%clk 0:02:46.9]} 9. O-O-O {[%clk 0:02:58.1]} 9... Nbd7 {[%clk
0:02:47.6]} 10. g4 {[%clk 0:02:58.6]} 10... Rb8 {[%clk 0:02:48.3]} 11. Bh4
{[%clk 0:02:48.7]} 11... h6 {[%clk 0:02:42.3]} 12. Be1 {[%clk 0:02:47.2]} 12...
b5 {[%clk 0:02:40.8]} 13. a3 {[%clk 0:02:47.6]} 13... Bb7 {[%clk 0:02:39.6]} 14.
h4 {[%clk 0:02:46.8]} 14... Nc5 {[%clk 0:02:25.8]} 15. Bd3 {[%clk 0:02:43.4]}
15... d5 {[%clk 0:02:26.4]} 16. e5 {[%clk 0:02:36.5]} 16... Nfe4 {[%clk
0:02:26.7]} 17. Bxe4 {[%clk 0:02:26.1]} 17... Nxe4 {[%clk 0:02:23.4]} 18. Nxe4
{[%clk 0:02:26]} 18... dxe4 {[%clk 0:02:24.3]} 19. Qe3 {[%clk 0:02:26.1]} 19...
Bd5 {[%clk 0:02:15.3]} 20. f5 {[%clk 0:02:19.3]} 20... Qxe5 {[%clk 0:02:13.4]}
21. Bg3 {[%clk 0:02:18.8]} 21... Qf6 {[%clk 0:02:03.2]} 22. Bxb8 {[%clk
0:02:16.7]} 22... O-O {[%clk 0:02:03.2]} 23. Bg3 {[%clk 0:02:12.5]} 23... exf5
{[%clk 0:02:02.7]} 24. Nxf5 {[%clk 0:02:11.8]} 24... b4 {[%clk 0:01:52.9]} 25.
Rxd5 {[%clk 0:02:07]} 1-0

[Event "Early-Titled-Tuesday-Blitz-April-16-2024"]
[Site "Chess.com"]
[Date "2024.04.16"]
[Round "5"]
[White "Fjal"]
[Black "jaskol95"]
[Result "0-1"]
[WhiteElo "2316"]
[BlackElo "2546"]
[TimeControl "180+1"]
[EndTime "8:52:16 PDT"]
[Termination "jaskol95 won by resignation"]

1. Nf3 {[%clk 0:02:56]} 1... d5 {[%clk 0:02:57.3]} 2. g3 {[%clk 0:02:55.7]} 2...
Nf6 {[%clk 0:02:55.9]} 3. Bg2 {[%clk 0:02:56]} 3... Bf5 {[%clk 0:02:56.2]} 4.
O-O {[%clk 0:02:56.6]} 4... e6 {[%clk 0:02:56.5]} 5. d3 {[%clk 0:02:57.5]} 5...
c6 {[%clk 0:02:56.4]} 6. c4 {[%clk 0:02:58.1]} 6... h6 {[%clk 0:02:56.8]} 7.
cxd5 {[%clk 0:02:58.3]} 7... exd5 {[%clk 0:02:56.1]} 8. Nd4 {[%clk 0:02:58.8]}
8... Bh7 {[%clk 0:02:54.5]} 9. e4 {[%clk 0:02:59.7]} 9... Be7 {[%clk 0:02:53.7]}
10. e5 {[%clk 0:02:59.3]} 10... Nfd7 {[%clk 0:02:37.6]} 11. Qg4 {[%clk
0:02:40.3]} 11... Nxe5 {[%clk 0:02:20.3]} 12. Qxg7 {[%clk 0:02:37.7]} 12... Bf6
{[%clk 0:02:20.1]} 13. Qxh6 {[%clk 0:02:26.3]} 13... Bxd3 {[%clk 0:02:18.6]} 14.
Qe3 {[%clk 0:02:25]} 14... Bxf1 {[%clk 0:02:18.7]} 15. Bxf1 {[%clk 0:02:22.1]}
15... Qb6 {[%clk 0:02:07.6]} 16. f4 {[%clk 0:02:15]} 16... Qxd4 {[%clk
0:02:07.1]} 17. fxe5 {[%clk 0:02:13.4]} 17... Bxe5 {[%clk 0:02:01.1]} 18. Nc3
{[%clk 0:01:54.1]} 18... Qxe3+ {[%clk 0:02:01.1]} 19. Bxe3 {[%clk 0:01:53.8]}
19... d4 {[%clk 0:02:01.8]} 20. Bf2 {[%clk 0:01:30.9]} 20... dxc3 {[%clk
0:02:00.7]} 0-1

[Event "Early-Titled-Tuesday-Blitz-April-16-2024"]
[Site "Chess.com"]
[Date "2024.04.16"]
[Round "5"]
[White "baki83"]
[Black "GeorgiosSouleidis"]
[Result "1-0"]
[WhiteElo "2926"]
[BlackElo "2654"]
[TimeControl "180+1"]
[EndTime "8:52:34 PDT"]
[Termination "baki83 won by resignation"]

1. e4 {[%clk 0:02:56.5]} 1... c5 {[%clk 0:02:55]} 2. Nf3 {[%clk 0:02:56.5]} 2...
e6 {[%clk 0:02:54.8]} 3. c3 {[%clk 0:02:56.9]} 3... d5 {[%clk 0:02:54.9]} 4. e5
{[%clk 0:02:56.8]} 4... d4 {[%clk 0:02:54.7]} 5. d3 {[%clk 0:02:57.1]} 5... Nc6
{[%clk 0:02:52.8]} 6. g3 {[%clk 0:02:56.8]} 6... Nge7 {[%clk 0:02:53]} 7. Bg2
{[%clk 0:02:57.1]} 7... Ng6 {[%clk 0:02:53.3]} 8. Qe2 {[%clk 0:02:54.4]} 8...
Qc7 {[%clk 0:02:53.2]} 9. O-O {[%clk 0:02:53.4]} 9... Bd7 {[%clk 0:02:39.3]} 10.
Re1 {[%clk 0:02:47.2]} 10... Be7 {[%clk 0:02:24.5]} 11. h4 {[%clk 0:02:46.6]}
11... O-O {[%clk 0:02:22.9]} 12. h5 {[%clk 0:02:42.5]} 12... Nh8 {[%clk
0:02:22.9]} 13. h6 {[%clk 0:02:42.3]} 13... g6 {[%clk 0:02:21.5]} 14. Nbd2
{[%clk 0:02:39.3]} 14... f5 {[%clk 0:02:05.4]} 15. exf6 {[%clk 0:02:38.9]} 15...
Bxf6 {[%clk 0:02:05.5]} 16. Ne4 {[%clk 0:02:38.1]} 16... b6 {[%clk 0:02:01.5]}
17. Bf4 {[%clk 0:02:33.2]} 17... Qd8 {[%clk 0:01:32.5]} 18. Nxf6+ {[%clk
0:02:29.4]} 18... Qxf6 {[%clk 0:01:20.9]} 19. Ne5 {[%clk 0:02:28.9]} 19... Nxe5
{[%clk 0:01:14.7]} 20. Bxe5 {[%clk 0:02:29]} 20... Qf5 {[%clk 0:01:05.2]} 21.
Bxh8 {[%clk 0:02:21.3]} 21... Kxh8 {[%clk 0:01:03.8]} 22. Bxa8 {[%clk
0:02:19.6]} 22... Rxa8 {[%clk 0:01:03.4]} 23. Qe5+ {[%clk 0:02:19]} 23... Qxe5
{[%clk 0:01:03.9]} 24. Rxe5 {[%clk 0:02:19.3]} 24... Kg8 {[%clk 0:01:04.6]} 25.
cxd4 {[%clk 0:02:19.2]} 25... cxd4 {[%clk 0:01:04.8]} 26. Rc1 {[%clk 0:02:18.8]}
1-0

[Event "Early-Titled-Tuesday-Blitz-April-16-2024"]
[Site "Chess.com"]
[Date "2024.04.16"]
[Round "5"]
[White "FREZZY23"]
[Black "AlphaGoosee"]
[Result "1-0"]
[WhiteElo "2442"]
[BlackElo "2573"]
[TimeControl "180+1"]
[EndTime "8:53:00 PDT"]
[Termination "FREZZY23 won by resignation"]

1. Nf3 {[%clk 0:03:00.9]} 1... d5 {[%clk 0:02:59.4]} 2. g3 {[%clk 0:03:01.2]}
2... Nf6 {[%clk 0:03:00]} 3. Bg2 {[%clk 0:03:01.5]} 3... c6 {[%clk 0:03:00.7]}
4. O-O {[%clk 0:03:02]} 4... Bg4 {[%clk 0:03:01.4]} 5. d4 {[%clk 0:03:02.5]}
5... Nbd7 {[%clk 0:03:01]} 6. c4 {[%clk 0:03:03]} 6... e6 {[%clk 0:03:01.2]} 7.
Nc3 {[%clk 0:03:03.3]} 7... dxc4 {[%clk 0:02:58.2]} 8. h3 {[%clk 0:03:00.2]}
8... Bh5 {[%clk 0:02:51.4]} 9. a4 {[%clk 0:02:54]} 9... a5 {[%clk 0:02:50.1]}
10. b3 {[%clk 0:02:48.7]} 10... Bb4 {[%clk 0:02:46.6]} 11. Bb2 {[%clk
0:02:45.1]} 11... cxb3 {[%clk 0:02:46.5]} 12. Qxb3 {[%clk 0:02:45.3]} 12... O-O
{[%clk 0:02:47.1]} 13. e4 {[%clk 0:02:43.7]} 13... Bxc3 {[%clk 0:02:40.6]} 14.
Bxc3 {[%clk 0:02:41.9]} 14... Nxe4 {[%clk 0:02:40.9]} 15. Bb2 {[%clk 0:02:40.1]}
15... Qc8 {[%clk 0:02:33.3]} 16. Ba3 {[%clk 0:02:34.7]} 16... Re8 {[%clk
0:02:30.3]} 17. Ne5 {[%clk 0:02:27.7]} 17... Nef6 {[%clk 0:02:25.3]} 18. Rab1
{[%clk 0:02:22.8]} 18... Ra7 {[%clk 0:02:19]} 19. Rfc1 {[%clk 0:02:15.2]} 19...
Bg6 {[%clk 0:02:10.3]} 20. Rb2 {[%clk 0:02:14.6]} 20... Qa8 {[%clk 0:02:01]} 21.
g4 {[%clk 0:02:02.8]} 21... Nxe5 {[%clk 0:01:44.1]} 22. dxe5 {[%clk 0:02:02.2]}
22... Nd5 {[%clk 0:01:42.6]} 23. Bc5 {[%clk 0:02:00]} 23... b6 {[%clk
0:01:42.7]} 24. Bxb6 {[%clk 0:01:59.5]} 24... Rb8 {[%clk 0:01:40.6]} 25. Bxd5
{[%clk 0:01:54.8]} 25... cxd5 {[%clk 0:01:41.5]} 26. Bxa7 {[%clk 0:01:53.6]}
26... Rf8 {[%clk 0:01:17.1]} 27. Qb8 {[%clk 0:01:46.5]} 1-0

[Event "Early-Titled-Tuesday-Blitz-April-16-2024"]
[Site "Chess.com"]
[Date "2024.04.16"]
[Round "5"]
[White "Knightmare1014"]
[Black "FARIZA2018"]
[Result "0-1"]
[WhiteElo "2302"]
[BlackElo "2543"]
[TimeControl "180+1"]
[EndTime "8:53:03 PDT"]
[Termination "FARIZA2018 won by resignation"]

1. e4 {[%clk 0:03:00.9]} 1... e5 {[%clk 0:03:00.2]} 2. Nf3 {[%clk 0:02:59.9]}
2... Nc6 {[%clk 0:03:00.8]} 3. Bb5 {[%clk 0:02:59.5]} 3... a6 {[%clk 0:03:01.1]}
4. Ba4 {[%clk 0:02:56.6]} 4... Nf6 {[%clk 0:03:01.1]} 5. O-O {[%clk 0:02:56.6]}
5... Be7 {[%clk 0:03:01.1]} 6. Re1 {[%clk 0:02:55]} 6... b5 {[%clk 0:03:01.2]}
7. Bb3 {[%clk 0:02:55.1]} 7... d6 {[%clk 0:03:01.6]} 8. a4 {[%clk 0:02:54.3]}
8... Bd7 {[%clk 0:03:01.8]} 9. Nc3 {[%clk 0:02:51.3]} 9... Na5 {[%clk
0:02:40.3]} 10. Ba2 {[%clk 0:02:48.5]} 10... bxa4 {[%clk 0:02:35.5]} 11. Nd5
{[%clk 0:02:39.6]} 11... Nxd5 {[%clk 0:02:18.5]} 12. Bxd5 {[%clk 0:02:38.7]}
12... Rb8 {[%clk 0:02:18.6]} 13. c3 {[%clk 0:02:36.6]} 13... O-O {[%clk
0:02:15]} 14. d4 {[%clk 0:02:36.3]} 14... Bf6 {[%clk 0:02:08.4]} 15. Be3 {[%clk
0:02:22.1]} 15... Qe7 {[%clk 0:01:49.5]} 16. Bc4 {[%clk 0:02:16.8]} 16... Nxc4
{[%clk 0:01:49.2]} 17. Qe2 {[%clk 0:02:07.6]} 17... Nxe3 {[%clk 0:01:47.6]} 18.
Qxe3 {[%clk 0:02:06.3]} 18... Rxb2 {[%clk 0:01:46.6]} 19. Reb1 {[%clk
0:02:01.9]} 19... Rfb8 {[%clk 0:01:45.2]} 20. Rxb2 {[%clk 0:02:01.8]} 20... Rxb2
{[%clk 0:01:45.6]} 21. dxe5 {[%clk 0:02:02.3]} 21... Bxe5 {[%clk 0:01:45]} 22.
Nxe5 {[%clk 0:02:00.9]} 22... Qxe5 {[%clk 0:01:43.3]} 23. Qa7 {[%clk 0:02:00.9]}
23... Qb5 {[%clk 0:01:27.8]} 24. h3 {[%clk 0:01:53.1]} 24... Qb7 {[%clk
0:01:22.5]} 25. Qd4 {[%clk 0:01:50]} 25... Qb6 {[%clk 0:01:22.2]} 26. Qd5 {[%clk
0:01:49.3]} 26... Qxf2+ {[%clk 0:01:21.9]} 0-1